fUST/lending_fUST_20250713
["ID","MTS","AMOUNT","RATE_DAILY","PERIOD"]
[371550064,1752345050984,-608.08,0.00018082,2]
[371550065,1752345050994,-460.0,0.00018082,2]
[371550066,1752345051004,-1615.51,0.00018082,2]
[371550067,1752345051013,-2336.58,0.00018082,2]
[371550068,1752345051023,-460.0,0.00018082,2]
[371550069,1752345051033,-460.0,0.00018082,2]
[371550070,1752345051042,-460.0,0.00018082,2]
[371550071,1752345051052,-460.0,0.00018082,2]
[371550072,1752345051062,-460.0,0.00018082,2]
[371550073,1752345051073,-550.21,0.00018082,2]
[371550074,1752345051082,-460.0,0.00018082,2]
[371550075,1752345051092,-460.0,0.00018082,2]
[371550076,1752345051101,-460.0,0.00018082,2]
[371550077,1752345051111,-460.0,0.00018082,2]
[371550078,1752345051120,-460.0,0.00018082,2]
[371550079,1752345051130,-460.0,0.00018082,2]
[371550080,1752345051139,-460.0,0.00018082,2]
[371550081,1752345051148,-460.0,0.00018082,2]
[371550082,1752345051158,-460.0,0.00018082,2]
[371550083,1752345051167,-460.0,0.00018082,2]
[371550084,1752345051177,-460.0,0.00018082,2]
[371550085,1752345051186,-3234.99,0.00018082,2]
[371550086,1752345051196,-460.0,0.00018082,2]
[371550087,1752345051205,-460.0,0.00018082,2]
[371550088,1752345051215,-460.0,0.00018082,2]
[371550089,1752345051224,-460.0,0.00018082,2]
[371550090,1752345051233,-460.0,0.00018082,2]
[371550091,1752345051242,-460.0,0.00018082,2]
[371550092,1752345051251,-778.51,0.00018082,2]
[371550093,1752345051260,-460.0,0.00018082,2]
[371550094,1752345051270,-460.0,0.00018082,2]
[371550095,1752345051279,-460.0,0.00018082,2]
[371550096,1752345051288,-568.15852823,0.00018082,2]
[371550097,1752345051297,-636.67,0.00018082,2]
[371550098,1752345051306,-460.0,0.00018082,2]
[371550099,1752345051316,-464.69,0.00018082,2]
[371550100,1752345051326,-2115.58,0.00018082,2]
[371550101,1752345051335,-460.0,0.00018082,2]
[371550102,1752345051345,-460.0,0.00018082,2]
[371550103,1752345051356,-460.0,0.00018082,2]
[371550104,1752345051365,-460.0,0.00018082,2]
[371550105,1752345051375,-460.0,0.00018082,2]
[371550106,1752345051384,-460.0,0.00018082,2]
[371550107,1752345051394,-460.0,0.00018082,2]
[371550108,1752345051404,-460.0,0.00018082,2]
[371550109,1752345051413,-387.33679268,0.00018082,2]
[371550110,1752345051423,-460.0,0.00018082,2]
[371550111,1752345051432,-460.0,0.00018082,2]
[371550112,1752345051442,-215.96451,0.00018093,2]
[371550113,1752345051451,-160.0,0.00018115,2]
[371550114,1752345051461,-838.37930271,0.00018115,2]
[371550115,1752345051471,-230.64269914,0.00018115,2]
[371550116,1752345051483,-160.0,0.00018116,2]
[371550117,1752345051493,-214.25614385,0.00018116,2]
[371550118,1752345051502,-160.0,0.00018116,2]
[371550119,1752345051512,-215.38668925,0.00018116,2]
[371550120,1752345051521,-1724.13888368,0.00018141,2]
[371550121,1752345051530,-215.96451,0.00018175,2]
[371550122,1752345051539,-647.08451494,0.00018256,2]
[371550123,1752345051549,-215.96451,0.00018257,2]
[371550124,1752345051559,-460.0,0.00018293,2]
[371550125,1752345051568,-460.0,0.00018293,2]
[371550126,1752345051578,-1158.6,0.00018293,2]
[371550127,1752345051588,-1102.62,0.00018293,2]
[371550128,1752345051598,-460.0,0.00018293,2]
[371550129,1752345051608,-2045.98,0.00018293,2]
[371550130,1752345051618,-485.06,0.00018293,2]
[371550131,1752345051628,-460.0,0.00018293,2]
[371550132,1752345051638,-1166.84,0.00018293,2]
[371550133,1752345051648,-4133.6,0.00018293,2]
[371550134,1752345051658,-1500.0,0.00018306,2]
[371550135,1752345051667,-1500.0,0.00018306,2]
[371550136,1752345051677,-215.96451,0.00018339,2]
[371550137,1752345051686,-460.0,0.00018356,2]
[371550138,1752345051695,-460.0,0.00018356,2]
[371550139,1752345051705,-561.63,0.00018356,2]
[371550140,1752345051714,-460.0,0.00018356,2]
[371550141,1752345051723,-460.0,0.00018356,2]
[371550142,1752345051732,-460.0,0.00018356,2]
[371550143,1752345051742,-534.5,0.00018356,2]
[371550144,1752345051751,-460.0,0.00018356,2]
[371550145,1752345051760,-463.32,0.00018356,2]
[371550146,1752345051770,-460.0,0.00018356,2]
[371550147,1752345051779,-485.04,0.00018356,2]
[371550148,1752345051789,-460.0,0.00018356,2]
[371550149,1752345051798,-460.0,0.00018356,2]
[371550150,1752345051808,-460.0,0.00018356,2]
[371550151,1752345051818,-460.0,0.00018356,2]
[371550152,1752345051827,-460.0,0.00018356,2]
[371550153,1752345051837,-585.71,0.00018356,2]
[371550154,1752345051849,-460.0,0.00018356,2]
[371550155,1752345051863,-460.0,0.00018356,2]
[371550156,1752345051873,-460.0,0.00018356,2]
[371550157,1752345051883,-460.0,0.00018356,2]
[371550158,1752345051892,-460.0,0.00018356,2]
[371550159,1752345051905,-1139.06,0.00018356,2]
[371550160,1752345051914,-460.0,0.00018356,2]
[371550161,1752345051925,-460.0,0.00018356,2]
[371550162,1752345051934,-566.32,0.00018356,2]
[371550163,1752345051943,-670.89,0.00018356,2]
[371550164,1752345051953,-460.0,0.00018356,2]
[371550165,1752345051962,-460.0,0.00018356,2]
[371550166,1752345051971,-460.0,0.00018356,2]
[371550167,1752345051981,-588.29,0.00018356,2]
[371550168,1752345051990,-460.0,0.00018356,2]
[371550169,1752345052000,-460.0,0.00018356,2]
[371550170,1752345052008,-460.0,0.00018356,2]
[371550171,1752345052017,-460.0,0.00018356,2]
[371550172,1752345052026,-2698.45,0.00018356,2]
[371550173,1752345052036,-1499.85,0.00018356,2]
[371550174,1752345052045,-460.0,0.00018356,2]
[371550175,1752345052054,-485.02,0.00018356,2]
[371550176,1752345052064,-644.74,0.00018356,2]
[371550177,1752345052073,-460.0,0.00018356,2]
[371550178,1752345052083,-460.0,0.00018356,2]
[371550179,1752345052092,-460.0,0.00018356,2]
[371550180,1752345052101,-480.24,0.00018356,2]
[371550181,1752345052111,-460.0,0.00018356,2]
[371550182,1752345052120,-460.0,0.00018356,2]
[371550183,1752345052130,-460.0,0.00018356,2]
[371550184,1752345052139,-460.0,0.00018356,2]
[371550185,1752345052149,-596.61,0.00018356,2]
[371550186,1752345052159,-460.0,0.00018356,2]
[371550187,1752345052168,-1004.62,0.00018356,2]
[371550188,1752345052281,-460.0,0.00018356,2]
[371550189,1752345052291,-460.0,0.00018356,2]
[371550190,1752345052300,-608.08,0.00018356,2]
[371550191,1752345052310,-460.0,0.00018356,2]
[371550192,1752345052320,-1615.51,0.00018356,2]
[371550193,1752345052332,-2336.58,0.00018356,2]
[371550194,1752345052341,-460.0,0.00018356,2]
[371550195,1752345052354,-460.0,0.00018356,2]
[371550196,1752345052364,-460.0,0.00018356,2]
[371550197,1752345052373,-460.0,0.00018356,2]
[371550198,1752345052383,-550.21,0.00018356,2]
[371550199,1752345052393,-460.0,0.00018356,2]
[371550200,1752345052402,-460.0,0.00018356,2]
[371550201,1752345052411,-460.0,0.00018356,2]
[371550202,1752345052422,-460.0,0.00018356,2]
[371550203,1752345052432,-460.0,0.00018356,2]
[371550204,1752345052442,-460.0,0.00018356,2]
[371550205,1752345052451,-460.0,0.00018356,2]
[371550206,1752345052460,-460.0,0.00018356,2]
[371550207,1752345052469,-460.0,0.00018356,2]
[371550208,1752345052479,-460.0,0.00018356,2]
[371550209,1752345052488,-460.0,0.00018356,2]
[371550210,1752345052498,-3234.99,0.00018356,2]
[371550211,1752345052508,-460.0,0.00018356,2]
[371550212,1752345052518,-460.0,0.00018356,2]
[371550213,1752345052528,-460.0,0.00018356,2]
[371550214,1752345052538,-460.0,0.00018356,2]
[371550215,1752345052548,-460.0,0.00018356,2]
[371550216,1752345052557,-523.54010684,0.00018356,2]
[371550217,1752345052567,-460.0,0.00018356,2]
[371550218,1752345052577,-778.51,0.00018356,2]
[371550219,1752345052585,-636.67,0.00018356,2]
[371550220,1752345052594,-460.0,0.00018356,2]
[371550221,1752345052603,-464.69,0.00018356,2]
[371550222,1752345052612,-2115.58,0.00018356,2]
[371550223,1752345052622,-460.0,0.00018356,2]
[371550224,1752345052632,-460.0,0.00018356,2]
[371550225,1752345052641,-460.0,0.00018356,2]
[371550226,1752345052651,-460.0,0.00018356,2]
[371550227,1752345052661,-460.0,0.00018356,2]
[371550228,1752345052671,-317.66006749,0.00018356,2]
[371550229,1752345052680,-460.0,0.00018356,2]
[371550230,1752345052690,-460.0,0.00018356,2]
[371550231,1752345052699,-460.0,0.00018356,2]
[371550232,1752345052709,-2000.0,0.00018416,2]
[371550233,1752345052719,-2000.0,0.00018416,2]
[371550234,1752345052728,-215.96451,0.00018421,2]
[371550235,1752345052738,-1724.13888368,0.00018452,2]
[371550236,1752345052747,-215.96451,0.00018504,2]
[371550237,1752345052756,-460.0,0.00018567,2]
[371550238,1752345052765,-1158.6,0.00018567,2]
[371550239,1752345052775,-1102.62,0.00018567,2]
[371550240,1752345052784,-460.0,0.00018567,2]
[371550241,1752345052794,-2045.98,0.00018567,2]
[371550242,1752345052805,-485.06,0.00018567,2]
[371550243,1752345052814,-460.0,0.00018567,2]
[371550244,1752345052824,-1166.84,0.00018567,2]
[371550245,1752345052834,-4133.6,0.00018567,2]
[371550246,1752345052844,-215.96451,0.00018586,2]
[371550247,1752345052859,-460.0,0.0001863,2]
[371550248,1752345052870,-561.63,0.0001863,2]
[371550249,1752345052881,-460.0,0.0001863,2]
[371550250,1752345052892,-460.0,0.0001863,2]
[371550251,1752345052903,-460.0,0.0001863,2]
[371550252,1752345052914,-534.5,0.0001863,2]
[371550253,1752345052924,-460.0,0.0001863,2]
[371550254,1752345052935,-463.32,0.0001863,2]
[371550255,1752345052945,-460.0,0.0001863,2]
[371550256,1752345052955,-485.04,0.0001863,2]
[371550257,1752345052964,-460.0,0.0001863,2]
[371550258,1752345052973,-460.0,0.0001863,2]
[371550259,1752345052982,-460.0,0.0001863,2]
[371550260,1752345052993,-460.0,0.0001863,2]
[371550261,1752345053003,-460.0,0.0001863,2]
[371550262,1752345053013,-585.71,0.0001863,2]
[371550263,1752345053023,-460.0,0.0001863,2]
[371550264,1752345053032,-543.93316443,0.0001863,2]
[371550265,1752345053042,-460.0,0.0001863,2]
[371550266,1752345053051,-460.0,0.0001863,2]
[371550267,1752345053061,-460.0,0.0001863,2]
[371550268,1752345053071,-1139.06,0.0001863,2]
[371550269,1752345053080,-460.0,0.0001863,2]
[371550270,1752345053090,-460.0,0.0001863,2]
[371550271,1752345053100,-566.32,0.0001863,2]
[371550272,1752345053110,-670.89,0.0001863,2]
[371550273,1752345053120,-460.0,0.0001863,2]
[371550274,1752345053130,-460.0,0.0001863,2]
[371550275,1752345053141,-460.0,0.0001863,2]
[371550276,1752345053150,-588.29,0.0001863,2]
[371550277,1752345053160,-460.0,0.0001863,2]
[371550278,1752345053169,-460.0,0.0001863,2]
[371550279,1752345053179,-237.77885004,0.0001863,2]
[371550280,1752345053187,-460.0,0.0001863,2]
[371550281,1752345053197,-1499.85,0.0001863,2]
[371550282,1752345053206,-2698.45,0.0001863,2]
[371550283,1752345053216,-460.0,0.0001863,2]
[371550284,1752345053226,-485.02,0.0001863,2]
[371550285,1752345053235,-644.74,0.0001863,2]
[371550286,1752345053245,-460.0,0.0001863,2]
[371550287,1752345053255,-460.0,0.0001863,2]
[371550288,1752345053264,-460.0,0.0001863,2]
[371550289,1752345053274,-480.24,0.0001863,2]
[371550290,1752345053284,-460.0,0.0001863,2]
[371550291,1752345053293,-460.0,0.0001863,2]
[371550292,1752345053303,-460.0,0.0001863,2]
[371550293,1752345053312,-460.0,0.0001863,2]
[371550294,1752345053322,-596.61,0.0001863,2]
[371550295,1752345053331,-460.0,0.0001863,2]
[371550296,1752345053340,-1004.62,0.0001863,2]
[371550297,1752345053350,-460.0,0.0001863,2]
[371550298,1752345053360,-460.0,0.0001863,2]
[371550299,1752345053369,-608.08,0.0001863,2]
[371550300,1752345053379,-1615.51,0.0001863,2]
[371550301,1752345053388,-2336.58,0.0001863,2]
[371550302,1752345053397,-460.0,0.0001863,2]
[371550303,1752345053406,-460.0,0.0001863,2]
[371550304,1752345053415,-460.0,0.0001863,2]
[371550305,1752345053423,-550.21,0.0001863,2]
[371550306,1752345053433,-460.0,0.0001863,2]
[371550307,1752345053442,-460.0,0.0001863,2]
[371550308,1752345053456,-460.0,0.0001863,2]
[371550309,1752345053472,-305.02908202,0.0001863,2]
[371550310,1752345053486,-460.0,0.0001863,2]
[371550311,1752345053498,-460.0,0.0001863,2]
[371550312,1752345053511,-460.0,0.0001863,2]
[371550313,1752345053525,-460.0,0.0001863,2]
[371550314,1752345053539,-460.0,0.0001863,2]
[371550315,1752345053553,-460.0,0.0001863,2]
[371550316,1752345053566,-460.0,0.0001863,2]
[371550317,1752345053579,-3234.99,0.0001863,2]
[371550318,1752345053593,-460.0,0.0001863,2]
[371550319,1752345053606,-460.0,0.0001863,2]
[371550320,1752345053618,-460.0,0.0001863,2]
[371550321,1752345053630,-460.0,0.0001863,2]
[371550322,1752345053641,-460.0,0.0001863,2]
[371550323,1752345053655,-778.51,0.0001863,2]
[371550324,1752345053667,-636.67,0.0001863,2]
[371550325,1752345053679,-460.0,0.0001863,2]
[371550326,1752345053689,-464.69,0.0001863,2]
[371550327,1752345053700,-2115.58,0.0001863,2]
[371550328,1752345053712,-460.0,0.0001863,2]
[371550329,1752345053725,-460.0,0.0001863,2]
[371550330,1752345053738,-460.0,0.0001863,2]
[371550331,1752345053750,-460.0,0.0001863,2]
[371550332,1752345053764,-587.22400294,0.0001863,2]
[371550333,1752345053778,-460.0,0.0001863,2]
[371550334,1752345053791,-215.96451,0.00018668,2]
[371550335,1752345053801,-215.96451,0.0001875,2]
[371550336,1752345053811,-1724.13888368,0.00018762,2]
[371550337,1752345053821,-460.0,0.00018841,2]
[371550338,1752345053834,-460.0,0.00018841,2]
[371550339,1752345053848,-1158.6,0.00018841,2]
[371550340,1752345053865,-1102.62,0.00018841,2]
[371550341,1752345053875,-460.0,0.00018841,2]
[371550342,1752345053886,-2045.98,0.00018841,2]
[371550343,1752345053898,-485.06,0.00018841,2]
[371550344,1752345053910,-460.0,0.00018841,2]
[371550345,1752345053921,-1166.84,0.00018841,2]
[371550346,1752345053933,-4133.6,0.00018841,2]
[371550347,1752345053945,-2000.0,0.00018854,2]
[371550348,1752345053957,-2000.0,0.00018854,2]
[371550349,1752345053968,-561.63,0.00018904,2]
[371550350,1752345053980,-320.03788471,0.00018904,2]
[371550351,1752345053991,-460.0,0.00018904,2]
[371550352,1752345054002,-460.0,0.00018904,2]
[371550353,1752345054013,-534.5,0.00018904,2]
[371550354,1752345054025,-500.08560201,0.00018904,2]
[371550355,1752345054037,-463.32,0.00018904,2]
[371550356,1752345054048,-460.0,0.00018904,2]
[371550357,1752345054060,-485.04,0.00018904,2]
[371550358,1752345054071,-460.0,0.00018904,2]
[371550359,1752345054082,-460.0,0.00018904,2]
[371550360,1752345054094,-460.0,0.00018904,2]
[371550361,1752345054105,-460.0,0.00018904,2]
[371550362,1752345054116,-585.71,0.00018904,2]
[371550363,1752345054127,-460.0,0.00018904,2]
[371550364,1752345054138,-460.0,0.00018904,2]
[371550365,1752345054150,-604.4,0.00018904,2]
[371550366,1752345054161,-460.0,0.00018904,2]
[371550367,1752345054173,-1139.06,0.00018904,2]
[371550368,1752345054185,-460.0,0.00018904,2]
[371550369,1752345054197,-460.0,0.00018904,2]
[371550370,1752345054208,-566.32,0.00018904,2]
[371550371,1752345054218,-670.89,0.00018904,2]
[371550372,1752345054230,-460.0,0.00018904,2]
[371550373,1752345054241,-460.0,0.00018904,2]
[371550374,1752345054253,-460.0,0.00018904,2]
[371550375,1752345054264,-588.29,0.00018904,2]
[371550376,1752345054275,-460.0,0.00018904,2]
[371550377,1752345054286,-460.0,0.00018904,2]
[371550378,1752345054297,-460.0,0.00018904,2]
[371550379,1752345054310,-1499.85,0.00018904,2]
[371550380,1752345054322,-2698.45,0.00018904,2]
[371550381,1752345054333,-460.0,0.00018904,2]
[371550382,1752345054344,-485.02,0.00018904,2]
[371550383,1752345054357,-644.74,0.00018904,2]
[371550384,1752345054369,-460.0,0.00018904,2]
[371550385,1752345054380,-460.0,0.00018904,2]
[371550386,1752345054391,-460.0,0.00018904,2]
[371550387,1752345054403,-480.24,0.00018904,2]
[371550388,1752345054415,-460.0,0.00018904,2]
[371550389,1752345054426,-460.0,0.00018904,2]
[371550390,1752345054439,-460.0,0.00018904,2]
[371550391,1752345054450,-460.0,0.00018904,2]
[371550392,1752345054462,-596.61,0.00018904,2]
[371550393,1752345054474,-460.0,0.00018904,2]
[371550394,1752345054486,-1004.62,0.00018904,2]
[371550395,1752345054498,-350.72989772,0.00018904,2]
[371550396,1752345054510,-460.0,0.00018904,2]
[371550397,1752345054522,-608.08,0.00018904,2]
[371550398,1752345054534,-1615.51,0.00018904,2]
[371550399,1752345054545,-2336.58,0.00018904,2]
[371550400,1752345054558,-460.0,0.00018904,2]
[371550401,1752345054571,-460.0,0.00018904,2]
[371550402,1752345054583,-550.21,0.00018904,2]
[371550403,1752345054595,-244.73576238,0.00018904,2]
[371550404,1752345054607,-460.0,0.00018904,2]
[371550405,1752345054619,-460.0,0.00018904,2]
[371550406,1752345054631,-460.0,0.00018904,2]
[371550407,1752345054641,-460.0,0.00018904,2]
[371550408,1752345054652,-460.0,0.00018904,2]
[371550409,1752345054663,-460.0,0.00018904,2]
[371550410,1752345054675,-600.66698098,0.00018904,2]
[371550411,1752345054686,-3234.99,0.00018904,2]
[371550412,1752345054698,-460.0,0.00018904,2]
[371550413,1752345054709,-460.0,0.00018904,2]
[371550414,1752345054720,-460.0,0.00018904,2]
[371550415,1752345054731,-460.0,0.00018904,2]
[371550416,1752345054743,-778.51,0.00018904,2]
[371550417,1752345054754,-636.67,0.00018904,2]
[371550418,1752345054766,-460.0,0.00018904,2]
[371550419,1752345054777,-464.69,0.00018904,2]
[371550420,1752345054789,-2115.58,0.00018904,2]
[371550421,1752345054801,-460.0,0.00018904,2]
[371550422,1752345054814,-460.0,0.00018904,2]
[371550423,1752345054825,-460.0,0.00018904,2]
[371550424,1752345054837,-460.0,0.00018904,2]
[371550425,1752345054849,-647.08451494,0.00018941,2]
[371550426,1752345055021,-500.0,0.00018964,2]
[371550427,1752345055034,-1724.13888368,0.00019072,2]
[371550428,1752345055044,-151.0,0.000191,2]
[371550429,1752345055054,-460.0,0.00019115,2]
[371550430,1752345055063,-460.0,0.00019115,2]
[371550431,1752345055072,-1158.6,0.00019115,2]
[371550432,1752345055081,-1102.62,0.00019115,2]
[371550433,1752345055091,-460.0,0.00019115,2]
[371550434,1752345055100,-2045.98,0.00019115,2]
[371550435,1752345055110,-485.06,0.00019115,2]
[371550436,1752345055119,-460.0,0.00019115,2]
[371550437,1752345055129,-1166.84,0.00019115,2]
[371550438,1752345055138,-4133.6,0.00019115,2]
[371550439,1752345055147,-501.98393499,0.00019177,2]
[371550440,1752345055157,-500.0,0.00019177,2]
[371550441,1752345055166,-500.0,0.00019177,2]
[371550442,1752345055176,-380.3920843,0.00019177,2]
[371550443,1752345055186,-500.0,0.00019177,2]
[371550444,1752345055195,-500.0,0.00019177,2]
[371550445,1752345055205,-246.6666074,0.00019177,2]
[371550446,1752345055215,-500.0,0.00019177,2]
[371550447,1752345055224,-500.0,0.00019177,2]
[371550448,1752345055234,-500.0,0.00019177,2]
[371550449,1752345055244,-500.0,0.00019177,2]
[371550450,1752345055254,-614.79997013,0.00019177,2]
[371550451,1752345055263,-500.0,0.00019177,2]
[371550452,1752345055274,-500.0,0.00019177,2]
[371550453,1752345055283,-500.0,0.00019177,2]
[371550454,1752345055293,-288.30527606,0.00019177,2]
[371550455,1752345055302,-500.0,0.00019177,2]
[371550456,1752345055312,-500.0,0.00019177,2]
[371550457,1752345055322,-204.64732396,0.00019177,2]
[371550458,1752345055331,-500.0,0.00019177,2]
[371550459,1752345055341,-228.71515507,0.00019177,2]
[371550460,1752345055351,-500.0,0.00019177,2]
[371550461,1752345055360,-500.0,0.00019177,2]
[371550462,1752345055370,-500.0,0.00019177,2]
[371550463,1752345055379,-500.0,0.00019177,2]
[371550464,1752345055388,-500.0,0.00019177,2]
[371550465,1752345055397,-500.0,0.00019177,2]
[371550466,1752345055406,-500.0,0.00019177,2]
[371550467,1752345055415,-500.0,0.00019177,2]
[371550468,1752345055425,-500.0,0.00019177,2]
[371550469,1752345055435,-500.0,0.00019177,2]
[371550470,1752345055444,-500.0,0.00019177,2]
[371550471,1752345055454,-330.89219194,0.00019177,2]
[371550472,1752345055463,-500.0,0.00019177,2]
[371550473,1752345055473,-500.0,0.00019177,2]
[371550474,1752345055483,-500.0,0.00019177,2]
[371550475,1752345055492,-500.0,0.00019177,2]
[371550476,1752345055502,-500.0,0.00019177,2]
[371550477,1752345055511,-500.0,0.00019177,2]
[371550478,1752345055521,-500.0,0.00019177,2]
[371550479,1752345055531,-500.0,0.00019177,2]
[371550480,1752345055541,-500.0,0.00019177,2]
[371550481,1752345055550,-500.0,0.00019177,2]
[371550482,1752345055560,-500.0,0.00019177,2]
[371550483,1752345055570,-500.0,0.00019177,2]
[371550484,1752345055580,-500.0,0.00019177,2]
[371550485,1752345055590,-500.0,0.00019177,2]
[371550486,1752345055599,-500.0,0.00019177,2]
[371550487,1752345055609,-561.63,0.00019178,2]
[371550488,1752345055619,-460.0,0.00019178,2]
[371550489,1752345055629,-460.0,0.00019178,2]
[371550490,1752345055638,-534.5,0.00019178,2]
[371550491,1752345055648,-463.32,0.00019178,2]
[371550492,1752345055657,-460.0,0.00019178,2]
[371550493,1752345055667,-485.04,0.00019178,2]
[371550494,1752345055676,-460.0,0.00019178,2]
[371550495,1752345055686,-460.0,0.00019178,2]
[371550496,1752345055696,-460.0,0.00019178,2]
[371550497,1752345055706,-460.0,0.00019178,2]
[371550498,1752345055715,-585.71,0.00019178,2]
[371550499,1752345055725,-460.0,0.00019178,2]
[371550500,1752345055735,-460.0,0.00019178,2]
[371550501,1752345055744,-460.0,0.00019178,2]
[371550502,1752345055754,-1139.06,0.00019178,2]
[371550503,1752345055764,-460.0,0.00019178,2]
[371550504,1752345055774,-460.0,0.00019178,2]
[371550505,1752345055783,-566.32,0.00019178,2]
[371550506,1752345055793,-670.89,0.00019178,2]
[371550507,1752345055803,-460.0,0.00019178,2]
[371550508,1752345055812,-460.0,0.00019178,2]
[371550509,1752345055821,-460.0,0.00019178,2]
[371550510,1752345055830,-588.29,0.00019178,2]
[371550511,1752345055839,-460.0,0.00019178,2]
[371550512,1752345055849,-460.0,0.00019178,2]
[371550513,1752345055862,-460.0,0.00019178,2]
[371550514,1752345055871,-1499.85,0.00019178,2]
[371550515,1752345055881,-2698.45,0.00019178,2]
[371550516,1752345055890,-485.02,0.00019178,2]
[371550517,1752345055901,-644.74,0.00019178,2]
[371550518,1752345055911,-460.0,0.00019178,2]
[371550519,1752345055920,-500.17,0.00019178,2]
[371550520,1752345055932,-460.0,0.00019178,2]
[371550521,1752345055942,-480.24,0.00019178,2]
[371550522,1752345055951,-460.0,0.00019178,2]
[371550523,1752345055961,-460.0,0.00019178,2]
[371550524,1752345055972,-460.0,0.00019178,2]
[371550525,1752345055983,-460.0,0.00019178,2]
[371550526,1752345055993,-596.61,0.00019178,2]
[371550527,1752345056002,-460.0,0.00019178,2]
[371550528,1752345056012,-1004.62,0.00019178,2]
[371550529,1752345056023,-460.0,0.00019178,2]
[371550530,1752345056032,-608.08,0.00019178,2]
[371550531,1752345056042,-1615.51,0.00019178,2]
[371550532,1752345056051,-2336.58,0.00019178,2]
[371550533,1752345056061,-460.0,0.00019178,2]
[371550534,1752345056070,-460.0,0.00019178,2]
[371550535,1752345056079,-550.21,0.00019178,2]
[371550536,1752345056089,-460.0,0.00019178,2]
[371550537,1752345056098,-460.0,0.00019178,2]
[371550538,1752345056108,-460.0,0.00019178,2]
[371550539,1752345056117,-460.0,0.00019178,2]
[371550540,1752345056127,-460.0,0.00019178,2]
[371550541,1752345056136,-575.57290686,0.00019178,2]
[371550542,1752345056146,-3234.99,0.00019178,2]
[371550543,1752345056156,-460.0,0.00019178,2]
[371550544,1752345056165,-460.0,0.00019178,2]
[371550545,1752345056175,-460.0,0.00019178,2]
[371550546,1752345056184,-778.51,0.00019178,2]
[371550547,1752345056196,-460.0,0.00019178,2]
[371550548,1752345056205,-636.67,0.00019178,2]
[371550549,1752345056215,-464.69,0.00019178,2]
[371550550,1752345056225,-2115.58,0.00019178,2]
[371550551,1752345056234,-581.95713535,0.00019178,2]
[371550552,1752345056244,-460.0,0.00019178,2]
[371550553,1752345056253,-460.0,0.00019178,2]
[371550554,1752345056263,-48154.9889144,0.00019178,2]
[371550555,1752345056273,-5000.0,0.00019178,2]
[371550556,1752345056282,-5000.0,0.00019178,2]
[371550557,1752345056292,-5000.0,0.00019178,2]
[371550558,1752345056302,-5000.0,0.00019178,2]
[371550559,1752345056312,-5000.0,0.00019178,2]
[371550560,1752345056322,-2010.35104184,0.00019178,2]
[371550561,1752345056331,-666.0,0.00019178,2]
[371550562,1752345056341,-553.76,0.000192,2]
[371550563,1752345056350,-3745.95,0.000192,2]